fUSD/lending_fUSD_20251024
["ID","MTS","AMOUNT","RATE_DAILY","PERIOD"]
[392270920,1761295846953,-151.0,0.00038243,30]
[392270921,1761295846963,-151.0,0.00038243,30]
[392270922,1761295846975,-151.0,0.00038243,30]
[392270923,1761295846987,-151.0,0.00038243,30]
[392270924,1761295846999,-151.0,0.00038243,30]
[392270925,1761295847009,-334.5472959,0.00038252,2]
[392270926,1761295847020,-287.61899177,0.00038252,2]
[392270927,1761295847031,-299.61378136,0.00038253,30]
[392270928,1761295847041,-151.0,0.00038253,30]
[392270929,1761295847055,-183.455001,0.00038253,30]
[392270930,1761295847065,-151.0,0.00038253,30]
[392270931,1761295847075,-151.0,0.00038253,30]
[392270932,1761295847087,-278.208894,0.00038253,30]
[392270933,1761295847098,-278.208894,0.00038253,30]
[392270934,1761295847109,-151.0,0.00038253,30]
[392270935,1761295847119,-151.0,0.00038253,30]
[392270936,1761295847131,-151.0,0.00038253,30]
[392270937,1761295847143,-151.0,0.00038253,30]
[392270938,1761295847152,-151.0,0.00038253,30]
[392270939,1761295847162,-151.0,0.00038253,30]
[392270940,1761295847171,-290.098047,0.00038253,30]
[392270941,1761295847183,-13582.11853429,0.00038291,2]
[392270942,1761295847192,-13739.57385664,0.00038292,2]
[392270943,1761295847202,-150.07,0.00038297,2]
[392270944,1761295847214,-152.0,0.00038312,4]
[392270945,1761295847224,-501.64844161,0.00038334,5]
[392270946,1761295847234,-277.38371333,0.00038334,5]
[392270947,1761295847243,-696.27,0.00038341,2]
[392270948,1761295847253,-696.48,0.00038342,2]
[392270949,1761295847262,-696.48,0.00038342,2]
[392270950,1761295847271,-696.48,0.00038342,2]
[392270951,1761295847281,-696.48,0.00038342,2]
[392270952,1761295847290,-475.59,0.00038342,2]
[392270953,1761295847300,-475.59,0.00038342,2]
[392270954,1761295847310,-696.27,0.00038342,2]
[392270955,1761295847320,-475.59,0.00038342,2]
[392270956,1761295847330,-475.59,0.00038342,2]
[392270957,1761295847340,-696.48,0.00038342,2]
[392270958,1761295847350,-500.0,0.00038356,30]
[392270959,1761295847361,-324.0,0.0003838,120]
[392270960,1761295847371,-1000.0,0.0003841,2]
[392270961,1761295847380,-150.0,0.00038411,7]
[392270962,1761295847390,-150.0,0.00038411,7]
[392270963,1761295847400,-150.0,0.00038411,7]
[392270964,1761295847413,-150.0,0.00038411,7]
[392270965,1761295847423,-150.0,0.00038411,7]
[392270966,1761295847433,-801.42904761,0.00038421,5]
[392270967,1761295847444,-1017.1336676,0.00038421,5]
[392270968,1761295847456,-18446.7602469,0.00038453,3]
[392270969,1761295847466,-7328.99665172,0.00038473,30]
[392270970,1761295847475,-190.202171,0.00038473,120]
[392270971,1761295847486,-190.202171,0.00038473,120]
[392270972,1761295847496,-190.202171,0.00038473,120]
[392270973,1761295847506,-190.202167,0.00038473,120]
[392270974,1761295847516,-151.0,0.00038473,120]
[392270975,1761295847526,-322.446415,0.00038473,120]
[392270976,1761295847536,-322.446415,0.00038473,120]
[392270977,1761295847546,-322.446415,0.00038473,120]
[392270978,1761295847556,-322.446419,0.00038473,120]
[392270979,1761295847567,-212.01,0.00038475,2]
[392270980,1761295847577,-171.41325887,0.00038479,15]
[392270981,1761295847587,-200.0,0.00038527,2]
[392270982,1761295847597,-200.0,0.00038527,2]
[392270983,1761295847607,-402.74451114,0.00038527,2]
[392270984,1761295847616,-250.0,0.00038629,2]
[392270985,1761295847626,-500.0,0.0003863,30]
[392270986,1761295847636,-151.0,0.00038656,90]
[392270987,1761295847646,-151.0,0.00038656,120]
[392270988,1761295847657,-151.0,0.00038656,120]
[392270989,1761295847667,-151.0,0.00038656,120]
[392270990,1761295847677,-151.0,0.00038656,120]
[392270991,1761295847686,-151.0,0.00038656,120]
[392270992,1761295847696,-151.0,0.00038656,120]
[392270993,1761295847706,-151.0,0.00038656,120]
[392270994,1761295847717,-151.0,0.00038656,120]
[392270995,1761295847727,-151.0,0.00038656,120]
[392270996,1761295847737,-151.0,0.00038656,30]
[392270997,1761295847746,-151.0,0.00038656,120]
[392270998,1761295847756,-157.912725,0.00038656,120]
[392270999,1761295847767,-151.0,0.00038656,120]
[392271000,1761295847777,-154.960097,0.00038656,120]
[392271001,1761295847787,-151.0,0.00038656,120]
[392271002,1761295847797,-151.0,0.00038656,120]
[392271003,1761295847806,-151.0,0.00038656,120]
[392271004,1761295847816,-151.0,0.00038656,120]
[392271005,1761295847826,-498.579985,0.00038656,120]
[392271006,1761295847836,-151.0,0.00038656,120]
[392271007,1761295847847,-498.579985,0.00038656,120]
[392271008,1761295847858,-151.0,0.00038656,120]
[392271009,1761295847868,-151.0,0.00038656,120]
[392271010,1761295847878,-498.579985,0.00038656,120]
[392271011,1761295847888,-181.488434,0.00038656,120]
[392271012,1761295847898,-498.579985,0.00038656,120]
[392271013,1761295847908,-153.169342,0.00038656,120]
[392271014,1761295847918,-151.0,0.00038656,120]
[392271015,1761295847927,-181.488434,0.00038656,120]
[392271016,1761295847937,-151.0,0.00038656,120]
[392271017,1761295847947,-151.0,0.00038656,120]
[392271018,1761295847957,-181.488434,0.00038656,120]
[392271019,1761295847968,-181.488434,0.00038656,120]
[392271020,1761295847978,-151.0,0.00038656,120]
[392271021,1761295847990,-151.0,0.00038656,30]
[392271022,1761295848001,-173.460243,0.00038656,30]
[392271023,1761295848012,-151.0,0.00038656,120]
[392271024,1761295848022,-151.0,0.00038656,120]
[392271025,1761295848032,-151.0,0.00038656,120]
[392271026,1761295848042,-151.0,0.00038656,120]
[392271027,1761295848053,-333.953392,0.00038656,120]
[392271028,1761295848063,-151.0,0.00038656,120]
[392271029,1761295848073,-333.953392,0.00038656,120]
[392271030,1761295848083,-151.0,0.00038656,120]
[392271031,1761295848093,-151.0,0.00038656,120]
[392271032,1761295848103,-151.0,0.00038656,120]
[392271033,1761295848113,-151.0,0.00038656,120]
[392271034,1761295848123,-151.0,0.00038656,120]
[392271035,1761295848133,-152.002984,0.00038656,120]
[392271036,1761295848143,-151.0,0.00038656,120]
[392271037,1761295848153,-154.002616,0.00038656,120]
[392271038,1761295848164,-151.0,0.00038656,120]
[392271039,1761295848174,-333.953392,0.00038656,120]
[392271040,1761295848184,-151.0,0.00038656,30]
[392271041,1761295848195,-509.703744,0.00038656,30]
[392271042,1761295848206,-333.953392,0.00038656,120]
[392271043,1761295848215,-509.703744,0.00038656,30]
[392271044,1761295848227,-509.703744,0.00038656,30]
[392271045,1761295848239,-509.703744,0.00038656,30]
[392271046,1761295848248,-151.0,0.00038656,14]
[392271047,1761295848258,-151.0,0.00038656,120]
[392271048,1761295848268,-405.522284,0.00038656,120]
[392271049,1761295848278,-405.522284,0.00038656,120]
[392271050,1761295848288,-405.522284,0.00038656,120]
[392271051,1761295848297,-405.522284,0.00038656,120]
[392271052,1761295848308,-171.710804,0.00038656,120]
[392271053,1761295848317,-231.671096,0.00038656,120]
[392271054,1761295848328,-231.671096,0.00038656,120]
[392271055,1761295848339,-171.710804,0.00038656,120]
[392271056,1761295848351,-231.671096,0.00038656,120]
[392271057,1761295848361,-171.710804,0.00038656,120]
[392271058,1761295848378,-151.0,0.00038656,120]
[392271059,1761295848396,-231.671096,0.00038656,120]
[392271060,1761295848406,-171.710804,0.00038656,120]
[392271061,1761295848420,-225.21299,0.00038656,120]
[392271062,1761295848430,-225.21299,0.00038656,120]
[392271063,1761295848439,-155.523178,0.00038656,120]
[392271064,1761295848449,-225.21299,0.00038656,120]
[392271065,1761295848458,-225.21299,0.00038656,120]
[392271066,1761295848468,-151.0,0.00038656,120]
[392271067,1761295848478,-151.0,0.00038656,120]
[392271068,1761295848488,-153.123272,0.00038656,120]
[392271069,1761295848499,-150.07,0.00038656,2]
[392271070,1761295848508,-151.0,0.00038658,120]
[392271071,1761295848518,-151.0,0.00038658,120]
[392271072,1761295848528,-151.0,0.00038658,120]
[392271073,1761295848538,-151.0,0.00038658,120]
[392271074,1761295848547,-151.0,0.00038658,120]
[392271075,1761295848557,-151.0,0.00038658,120]
[392271076,1761295848566,-151.0,0.00038658,120]
[392271077,1761295848576,-151.0,0.00038658,120]
[392271078,1761295848586,-151.0,0.00038658,120]
[392271079,1761295848596,-357.977238,0.00038658,120]
[392271080,1761295848605,-18446.7602469,0.00038658,3]
[392271081,1761295848615,-9999.99,0.00038678,2]
[392271082,1761295848624,-150.99,0.00038678,30]
[392271083,1761295848634,-999.99,0.00038678,2]
[392271084,1761295848643,-4063.45,0.00038678,2]
[392271085,1761295848653,-343.75,0.00038678,2]
[392271086,1761295848663,-463.03,0.00038678,2]
[392271087,1761295848674,-9999.99,0.00038678,2]
[392271088,1761295848684,-646.845684,0.00038684,120]
[392271089,1761295848693,-164.870138,0.00038684,120]
[392271090,1761295848703,-151.0,0.00038684,120]
[392271091,1761295848712,-151.0,0.00038684,10]
[392271092,1761295848722,-164.870138,0.00038684,120]
[392271093,1761295848732,-646.845684,0.00038684,120]
[392271094,1761295848742,-151.0,0.00038684,120]
[392271095,1761295848751,-151.0,0.00038684,120]
[392271096,1761295848761,-164.870138,0.00038684,120]
[392271097,1761295848770,-646.845684,0.00038684,120]
[392271098,1761295848780,-151.0,0.00038684,120]
[392271099,1761295848790,-151.0,0.00038684,120]
[392271100,1761295849003,-151.0,0.00038684,120]
[392271101,1761295849027,-646.845684,0.00038684,120]
[392271102,1761295849036,-164.870138,0.00038684,120]
[392271103,1761295849047,-151.0,0.00038684,120]
[392271104,1761295849058,-151.0,0.00038684,120]
[392271105,1761295849067,-154.42948,0.00038684,120]
[392271106,1761295849077,-151.0,0.00038684,120]
[392271107,1761295849086,-151.0,0.00038684,60]
[392271108,1761295849096,-275.418584,0.00038684,120]
[392271109,1761295849105,-151.0,0.00038684,60]
[392271110,1761295849115,-151.0,0.00038684,120]
[392271111,1761295849124,-151.0,0.00038684,120]
[392271112,1761295849133,-151.0,0.00038684,120]
[392271113,1761295849143,-151.0,0.00038684,120]
[392271114,1761295849152,-151.0,0.00038684,120]
[392271115,1761295849162,-1000.0,0.00038684,2]
[392271116,1761295849171,-13582.11853429,0.00038833,2]
[392271117,1761295849181,-13739.57385664,0.00038834,2]
[392271118,1761295849191,-18446.7602469,0.00038858,3]
[392271119,1761295849200,-717.56,0.000389,30]
[392271120,1761295849210,-1700.0,0.000389,14]
[392271121,1761295849219,-1086.17,0.000389,14]
[392271122,1761295849230,-500.0,0.00038904,30]
[392271123,1761295849239,-1000.0,0.00038958,2]
[392271124,1761295849249,-500.0,0.00038963,30]
[392271125,1761295849259,-18446.7602469,0.0003899,3]
[392271126,1761295849269,-211.99970504,0.00038994,2]
[392271127,1761295849279,-15300.0,0.00039,60]
[392271128,1761295849288,-150.0,0.00039,2]
[392271129,1761295849298,-2872.96172,0.00039,2]
[392271130,1761295849308,-7088.54,0.00039,30]
[392271131,1761295849319,-151.0,0.00039,120]
[392271132,1761295849329,-151.0,0.00039,120]
[392271133,1761295849348,-151.0,0.00039,120]
[392271134,1761295849360,-4118.411676,0.00039,120]
[392271135,1761295849373,-4118.411676,0.00039,120]
[392271136,1761295849382,-151.0,0.00039,120]
[392271137,1761295849391,-151.0,0.00039,120]
[392271138,1761295849401,-151.0,0.00039,120]
[392271139,1761295849412,-4118.411676,0.00039,120]
[392271140,1761295849423,-194.654087,0.00039,120]
[392271141,1761295849432,-185.451122,0.00039,120]
[392271142,1761295849441,-4118.411676,0.00039,120]
[392271143,1761295849451,-185.451122,0.00039,120]
[392271144,1761295849468,-286.358107,0.00039,120]
[392271145,1761295849480,-151.0,0.00039,120]
[392271146,1761295849491,-185.451122,0.00039,120]
[392271147,1761295849501,-286.358107,0.00039,120]
[392271148,1761295849510,-185.451122,0.00039,120]
[392271149,1761295849520,-286.358107,0.00039,120]
[392271150,1761295849530,-286.358107,0.00039,120]
[392271151,1761295849539,-151.0,0.00039,120]
[392271152,1761295849549,-151.0,0.00039,120]
[392271153,1761295849559,-151.0,0.00039,120]
[392271154,1761295849568,-151.0,0.00039,120]
[392271155,1761295849578,-151.0,0.00039,120]
[392271156,1761295849587,-151.0,0.00039,120]
[392271157,1761295849597,-151.0,0.00039,120]
[392271158,1761295849606,-151.0,0.00039,120]
[392271159,1761295849614,-151.0,0.00039,120]
[392271160,1761295849622,-151.0,0.00039,120]
[392271161,1761295849631,-151.0,0.00039,120]
[392271162,1761295849640,-150.07,0.00039015,2]
[392271163,1761295849650,-920.5,0.00039018,2]
[392271164,1761295849659,-14156.3962703,0.0003906,3]
[392271165,1761295849669,-151.0,0.0003907,120]
[392271166,1761295849679,-151.0,0.0003907,90]
[392271167,1761295849688,-151.0,0.0003907,120]
[392271168,1761295849697,-151.0,0.0003907,120]
[392271169,1761295849707,-151.0,0.0003907,120]
[392271170,1761295849715,-501.45754319,0.00039073,5]
[392271171,1761295849724,-500.0,0.00039073,5]
[392271172,1761295849734,-360.43011227,0.00039073,5]
[392271173,1761295849743,-501.31462523,0.00039073,5]
[392271174,1761295849752,-500.0,0.00039073,5]
[392271175,1761295849762,-200.0,0.00039073,5]
[392271176,1761295849776,-500.0,0.00039073,5]
[392271177,1761295849785,-463.72592388,0.00039073,5]
[392271178,1761295849794,-501.14407453,0.00039073,5]
[392271179,1761295849803,-166.89002745,0.00039073,5]
[392271180,1761295849812,-500.0,0.00039073,5]
[392271181,1761295849821,-500.0,0.00039073,5]
[392271182,1761295849831,-500.0,0.00039073,5]
[392271183,1761295849841,-500.30913434,0.00039073,5]
[392271184,1761295849850,-500.0,0.00039073,5]
[392271186,1761295849860,-500.0,0.00039073,5]
[392271187,1761295849869,-500.0,0.00039073,5]
[392271188,1761295849879,-500.0,0.00039073,5]
[392271189,1761295849891,-233.23062855,0.00039075,2]
[392271190,1761295849900,-200.0,0.00039075,2]
[392271191,1761295849910,-212.01,0.00039078,2]
[392271192,1761295849919,-18446.7602469,0.0003909,3]
[392271193,1761295849928,-28312.7925406,0.0003909,3]
[392271194,1761295849938,-46933.65,0.000391,14]
[392271195,1761295849947,-186.0,0.00039112,2]
[392271196,1761295849956,-306.84,0.00039121,2]
[392271197,1761295849965,-300.51,0.00039163,2]
[392271198,1761295849975,-150.0,0.00039163,2]
[392271199,1761295849984,-1211.86,0.00039164,2]
[392271200,1761295849993,-150.0,0.00039164,2]
[392271201,1761295850002,-150.0,0.00039164,2]
[392271203,1761295850011,-150.0,0.00039164,2]
[392271204,1761295850021,-150.0,0.00039164,2]
[392271205,1761295850031,-150.0,0.00039164,2]
[392271206,1761295850041,-150.0,0.00039164,2]
[392271207,1761295850050,-150.0,0.00039164,2]
[392271208,1761295850059,-1200.0,0.00039177,7]
[392271209,1761295850069,-500.0,0.00039177,7]
[392271210,1761295850078,-500.0,0.00039178,30]
[392271212,1761295850088,-150.0,0.00039213,2]
[392271213,1761295850098,-1000.0,0.00039232,2]
[392271214,1761295850107,-500.0,0.00039241,30]
[392271215,1761295850117,-186.0,0.00039256,120]
[392271216,1761295850126,-500.0,0.00039287,30]
[392271217,1761295850135,-475.59,0.00039296,2]
[392271218,1761295850145,-475.59,0.00039296,2]
[392271219,1761295850154,-186.0,0.00039302,2]
[392271220,1761295850164,-186.0,0.00039323,2]
[392271221,1761295850173,-267.0,0.00039342,14]
[392271222,1761295850183,-169.164264,0.00039346,120]
[392271223,1761295850192,-298.276608,0.00039346,120]
[392271224,1761295850201,-14156.3962703,0.00039356,3]
[392271225,1761295850211,-18446.7602469,0.00039366,3]
[392271226,1761295850221,-151.0,0.00039366,120]
[392271227,1761295850231,-151.0,0.00039366,120]
[392271228,1761295850240,-151.0,0.00039366,120]
[392271229,1761295850250,-151.0,0.00039366,120]
[392271230,1761295850259,-333.953392,0.00039366,120]
[392271231,1761295850269,-151.0,0.00039366,120]
[392271232,1761295850278,-333.953392,0.00039366,120]
[392271233,1761295850287,-153.321221,0.00039366,120]
[392271234,1761295850296,-151.0,0.00039366,120]
[392271235,1761295850305,-151.0,0.00039366,120]
[392271236,1761295850315,-272.295284,0.00039366,120]
[392271237,1761295850324,-151.0,0.00039366,120]
[392271238,1761295850333,-151.0,0.00039366,120]
[392271239,1761295850343,-174.044366,0.00039366,120]
[392271240,1761295850352,-333.953392,0.00039366,120]
[392271241,1761295850361,-151.0,0.00039366,30]
[392271242,1761295850371,-509.703744,0.00039366,30]
[392271243,1761295850380,-333.953392,0.00039366,120]
[392271244,1761295850390,-509.703744,0.00039366,30]
[392271245,1761295850399,-509.703744,0.00039366,30]
[392271246,1761295850408,-509.703744,0.00039366,30]
[392271247,1761295850420,-55.26655158,0.00039366,14]
[392271248,1761295850839,-500.0,0.00039073,5]
[392271249,1761295850850,-95.73344842,0.00039366,14]
[392271250,1761295850860,-151.0,0.00039366,120]
[392271251,1761295850870,-405.522284,0.00039366,120]
[392271252,1761295850881,-405.522284,0.00039366,120]
[392271253,1761295850890,-405.522284,0.00039366,120]
[392271254,1761295850900,-405.522284,0.00039366,120]
[392271255,1761295850911,-171.710804,0.00039366,120]
[392271256,1761295850920,-59.08943486,0.00039366,120]
[392271257,1761295850931,-172.58166114,0.00039366,120]
[392271258,1761295850939,-231.671096,0.00039366,120]
[392271259,1761295850948,-171.710804,0.00039366,120]
[392271260,1761295850957,-231.671096,0.00039366,120]
[392271261,1761295850967,-171.710804,0.00039366,120]
[392271262,1761295850978,-151.0,0.00039366,120]
[392271263,1761295850991,-231.671096,0.00039366,120]
[392271264,1761295851001,-171.710804,0.00039366,120]
[392271265,1761295851011,-225.21299,0.00039366,120]
[392271266,1761295851021,-225.21299,0.00039366,120]
[392271267,1761295851030,-225.21299,0.00039366,120]
[392271268,1761295851040,-225.21299,0.00039366,120]
[392271269,1761295851050,-151.0,0.00039366,120]
[392271270,1761295851060,-151.0,0.00039366,120]
[392271271,1761295851069,-150.07,0.00039374,2]
[392271272,1761295851079,-13582.11853429,0.00039375,2]
[392271273,1761295851089,-151.0,0.00039375,120]
[392271274,1761295851099,-151.0,0.00039375,120]
[392271275,1761295851108,-151.0,0.00039375,120]
[392271276,1761295851118,-151.0,0.00039375,120]
[392271277,1761295851128,-151.0,0.00039375,120]
[392271278,1761295851138,-151.0,0.00039375,120]
[392271279,1761295851147,-151.0,0.00039375,120]
[392271280,1761295851157,-184.630481,0.00039375,120]
[392271281,1761295851167,-151.0,0.00039375,120]
[392271282,1761295851176,-357.977238,0.00039375,120]
[392271283,1761295851186,-280.05873301,0.00039376,2]
[392271284,1761295851214,-2548.0,0.00039376,2]
[392271285,1761295852121,-151.0,0.00033111,2]
[392271286,1761295852132,-151.0,0.00038658,120]
[392271287,1761295852143,-151.0,0.00038658,120]
[392271288,1761295852153,-357.977238,0.00038658,120]
[392271289,1761295852164,-1359.69212,0.00038658,120]
[392271290,1761295852175,-357.977238,0.00038658,120]
[392271291,1761295852186,-188.412873,0.00039375,120]
[392271292,1761295852195,-254.241398,0.00039375,120]
[392271293,1761295852205,-357.977238,0.00039375,120]
[392271294,1761295852215,-1359.69212,0.00039375,120]
[392271295,1761295852224,-10911.51512363,0.00039376,2]
[392271296,1761295852233,-882.35588877,0.00039386,2]
[392271297,1761295852243,-171.41325887,0.00039386,15]
[392271298,1761295852252,-500.0,0.00039387,30]
[392271299,1761295852262,-14156.3962703,0.00039442,3]
[392271300,1761295852271,-151.0,0.00039444,90]
[392271301,1761295852281,-151.0,0.00039444,120]
[392271302,1761295852290,-500.0,0.00039452,30]
[392271303,1761295852299,-1000.0,0.00039506,2]
[392271304,1761295852309,-500.0,0.00039525,30]
[392271305,1761295852318,-300.0,0.00039558,120]
[392271306,1761295852327,-1091.0,0.00039561,5]
[392271307,1761295852336,-188.0,0.00039606,2]
[392271308,1761295852345,-1000.0,0.00039621,5]
[392271309,1761295852354,-501.84364511,0.00039621,5]
[392271310,1761295852363,-1001.38371264,0.00039621,5]
[392271311,1761295852373,-1000.0,0.00039621,5]
[392271312,1761295852382,-1000.0,0.00039621,5]
[392271313,1761295852392,-503.3380358,0.00039621,5]
[392271314,1761295852401,-531.68066942,0.00039621,5]
[392271315,1761295852411,-1000.0,0.00039621,5]
[392271316,1761295852422,-1000.0,0.00039621,5]
[392271317,1761295852432,-662.24776867,0.00039621,5]
[392271318,1761295852441,-346.92554585,0.00039621,2]
[392271319,1761295852451,-298.26089446,0.00039621,2]
[392271320,1761295852461,-207.4,0.00039622,2]
[392271321,1761295852470,-200.0,0.00039623,2]
[392271322,1761295852479,-364.57,0.00039654,2]
[392271323,1761295852490,-1000.0,0.0003966,2]
[392271324,1761295852500,-1425.0,0.00039675,2]
[392271325,1761295852512,-500.0,0.00039678,30]
[392271326,1761295852521,-5888.0,0.0003969,120]
[392271327,1761295852531,-1425.0,0.00039709,2]
[392271328,1761295852541,-500.0,0.00039726,30]
[392271329,1761295852550,-1425.0,0.00039728,2]
[392271330,1761295852559,-150.07,0.00039732,2]
[392271331,1761295852569,-400.0,0.00039758,5]
[392271332,1761295852578,-212.01,0.00039764,2]
[392271333,1761295852587,-14156.3962703,0.0003978,3]
[392271334,1761295852597,-1000.0,0.0003978,2]
[392271335,1761295852606,-18446.7602469,0.0003979,3]
[392271336,1761295852615,-151.0,0.000398,120]
[392271337,1761295852624,-213.865681,0.000398,120]
[392271338,1761295852634,-211.847088,0.000398,120]
[392271339,1761295852644,-241.623404,0.000398,120]
[392271340,1761295852653,-151.0,0.000398,120]
[392271341,1761295852662,-151.0,0.000398,120]
[392271342,1761295852671,-151.0,0.000398,120]
[392271343,1761295852681,-151.0,0.000398,120]
[392271344,1761295852690,-151.0,0.000398,120]
[392271345,1761295852699,-151.0,0.000398,120]
[392271346,1761295852709,-151.0,0.000398,120]
[392271347,1761295852718,-151.0,0.000398,120]
[392271348,1761295852727,-151.0,0.000398,120]
[392271349,1761295852737,-151.0,0.000398,120]
[392271350,1761295852746,-151.0,0.000398,120]
[392271351,1761295852756,-179.230443,0.000398,120]
[392271352,1761295852765,-7088.54,0.000398,30]
[392271353,1761295852774,-14156.3962703,0.00039806,3]
[392271354,1761295852783,-950.69,0.00039808,2]
[392271355,1761295852793,-1425.0,0.00039812,2]
[392271356,1761295852802,-18446.7602469,0.00039829,3]
[392271357,1761295852810,-14156.3962703,0.00039829,3]
[392271358,1761295852821,-3413.0,0.00039839,2]
[392271359,1761295852834,-1037.84155434,0.00039839,2]
[392271360,1761295853457,-2331.41349936,0.00036765,2]
[392271361,1761295853467,-516.76570453,0.00037365,2]
[392271362,1761295853476,-229.01267656,0.00038341,2]
[392271492,1761296098198,89.29512606,0.00036665,15]
[392271493,1761296098226,171.094111,0.00036665,15]
[392271494,1761296098256,151.0,0.00036665,15]
[392271495,1761296098283,151.0,0.00036665,15]
[392271496,1761296098313,260.708385,0.00036665,15]
[392271497,1761296098340,151.0,0.00036665,15]
[392271498,1761296098367,380.90237794,0.00036665,15]
[392271508,1761296225945,0.42949094,0.0003619,120]
[392271531,1761296278363,8250.2910679,0.0002739,120]
[392271591,1761296506236,337.35,0.00013699,2]
[392271765,1761296973129,-337.35,0.00020187,2]
[392271766,1761296973152,-250.0,0.00021197,2]
[392271767,1761296973173,-195.0,0.00022206,2]
[392271768,1761296973193,-250.0,0.00022206,2]
[392271769,1761296973215,-250.0,0.00026394,2]
[392271770,1761296973236,-337.35,0.00026676,2]
[392271771,1761296973256,-150.0,0.0003,120]
[392271773,1761296980130,202.97,0.00018659,2]
[392271774,1761296980183,202.97,0.00019641,2]
[392271775,1761296980225,202.97,0.00020623,2]
[392271776,1761296980423,202.97,0.00021605,2]
[392271777,1761296980875,202.97,0.00022587,2]
[392271778,1761296981042,202.97,0.00023569,2]
[392271779,1761296981234,202.97,0.00024551,2]
[392271780,1761296981441,202.97,0.00025534,2]
[392271781,1761296981686,202.97,0.00026516,2]
[392271782,1761296981876,202.97,0.00027498,2]
[392271783,1761296982071,202.97,0.0002848,2]
[392271784,1761296982327,202.97,0.00029462,2]
[392271785,1761296982517,202.97,0.00030444,2]
[392271786,1761296983113,202.97,0.00031426,2]
[392271797,1761297031916,-202.97,0.00032408,2]
[392271800,1761297031927,-1147.82169604,0.000329,2]
[392271802,1761297031939,-150.0,0.000329,2]
[392271803,1761297031952,-62.70906768,0.00033165,2]
[392271804,1761297032020,-274.64093232,0.00033165,2]
[392271805,1761297032031,-202.97,0.0003339,2]
[392271806,1761297032042,-394.10234922,0.00033452,2]
[392271807,1761297032052,-202.97,0.00034372,2]
[392271808,1761297032063,-189.0,0.00034801,2]
[392271809,1761297032073,-202.97,0.00035354,2]
[392271810,1761297032084,-188.0,0.00035446,120]
[392271811,1761297032095,-1200.0,0.00035454,3]
[392271812,1761297032105,-400.0,0.00035454,2]
[392271813,1761297032116,-400.0,0.00035454,3]
[392271814,1761297032126,-1600.0,0.00035454,3]
[392271815,1761297032137,-8951.62,0.00035455,2]
[392271816,1761297032147,-3814.52699643,0.00035455,2]
[392271817,1761297032159,-6185.46300357,0.00035455,2]
[392271818,1761297032169,-188.0,0.0003561,7]
[392271819,1761297032179,-189.0,0.00035785,7]
[392271820,1761297032192,-200.0,0.00036,120]
[392271821,1761297032202,-500.0,0.00036,15]
[392271822,1761297032212,-186.0,0.00036111,7]
[392271823,1761297032222,-202.97,0.00036336,2]
[392271824,1761297032232,-186.0,0.00036499,7]
[392271825,1761297032242,-186.0,0.0003679,7]
[392271827,1761297032252,-186.0,0.00036818,120]
[392271829,1761297032261,-186.0,0.00036902,2]
[392271831,1761297032272,-666.0,0.00036936,3]